[Event "ChessKid Cup Div-III 2023"]
[Site "Online"]
[Date "2023.05.23"]
[Round "52.1"]
[White "Harshavardhan G B"]
[Black "Donchenko, Alexander"]
[Result "0-1"]
[ECO "D16"]
[WhiteElo "2408"]
[BlackElo "2669"]
[Annotator "TA"]
[PlyCount "122"]
[EventDate "2023.05.21"]
[EventType "k.o."]
[EventCountry "NET"]
[SourceTitle "playchess.com"]
[Source "ChessBase"]
[SourceQuality "1"]
[TimeControl "900+3"]

{[%evp 16,122,21,0,0,8,10,10,8,0,15,0,0,0,5,8,12,24,11,0,0,0,0,0,0,0,2,4,16,13,10,0,0,0,0,0,0,0,0,0,0,0,0,0,0,0,0,0,0,0,0,0,0,0,0,0,0,0,0,0,0,0,0,0,0,0,0,-21,-27,-29964,-6119,-29963,-29966,-29967,-29970,-29968,-29971,-29976,-29977,-29977,-29978,-29978,-29979,-29979,-29980,-29980,-29981,-29981,-29982,-29983,-29984,-29984,-29984,-29984,-29985,-29985,-29986,-29986,-29987,-29987,-29988,-29988,-29989,-29989,-29989,-29991,-29992,-29994,-29995]} 1. d4 {[%emt 0:00:12]} d5 {[%emt 0:00:05]} 2. c4 {[%emt 0:00:05]} c6 {[%emt 0:00:01]} 3. Nf3 {[%emt 0:00:09]} Nf6 {[%emt 0:00:01]} 4. Nc3 {[%emt 0:00:02]} dxc4 {[%emt 0:00:01]} 5. a4 {[%emt 0:00:01]} e6 {[%emt 0:00:01]} 6. e3 {[%emt 0:00:02]} c5 {[%emt 0:00:01]} 7. Bxc4 {[%emt 0:00:01]} cxd4 {[%emt 0:00:01]} 8. exd4 {[%emt 0:00:01]} Nc6 {[%emt 0:00:01]} 9. O-O {[%emt 0:00:02]} Be7 {[%emt 0:00:00] D16: Slav Defence: 5 a4: Lines with 5...Bg4 and 5...Na6.} 10. Qe2 {[%emt 0:00:02]} O-O {[%emt 0:00:02]} ({Don't take} 10... Nxd4 11. Nxd4 Qxd4 12. Nb5 $16) 11. Rd1 {[%emt 0:00:02]} Nb4 {[%emt 0:00:07] The position is equal.} 12. a5 {[%emt 0:00:06]} Bd7 {[%emt 0:00:03]} 13. Ne5 {[%emt 0:00:21]} Rc8 {[%emt 0:00:12]} 14. Bg5 {[%emt 0:00:21]} h6 {[%emt 0:03:05]} 15. Bh4 {[%emt 0:00:18] [#]} Nfd5 $146 {[%emt 0:00:50]} ({Predecessor:} 15... Bc6 16. a6 bxa6 17. Bxa6 Rc7 18. Bg3 Nxa6 19. Rxa6 Be8 20. Nb5 Rb7 21. Nxa7 Qd5 {1-0 Xiong,J (2679)-Gledura,B (2645) chess.com Speed U20 blitz 2019 (2.5)}) 16. Bxe7 {[%emt 0:00:55]} Qxe7 {[%emt 0:00:08]} 17. Nxd5 {[%emt 0:02:08]} exd5 {[%emt 0:00:31]} 18. Nxd7 {[%emt 0:00:03]} Qxd7 {[%emt 0:00:08]} 19. Bb5 {[%emt 0:00:02]} Qd6 {[%emt 0:00:34]} 20. Rac1 {[%emt 0:00:12] Inhibits Nc2.} a6 {[%emt 0:00:25]} 21. Ba4 {[%emt 0:00:04]} Nc6 {[%emt 0:01:47]} 22. Qd2 {[%emt 0:00:17]} Ne7 {[%emt 0:01:39]} 23. h3 {[%emt 0:00:40]} Rxc1 {[%emt 0:00:21]} 24. Rxc1 {[%emt 0:00:04]} Rc8 {[%emt 0:00:01]} 25. Rxc8+ {[%emt 0:00:12]} Nxc8 $11 {[%emt 0:00:00][%mdl 4096] Endgame KQB-KQN} 26. Qc3 {[%emt 0:01:03]} Ne7 {[%emt 0:00:06]} 27. g3 {[%emt 0:00:12]} g6 {[%emt 0:00:43]} 28. h4 {[%emt 0:00:04]} Kg7 {[%emt 0:00:04]} 29. Bd1 {[%emt 0:00:28]} Nc6 {[%emt 0:00:35]} 30. Bf3 {[%emt 0:00:04]} Kf6 {[%emt 0:01:35]} 31. h5 {[%emt 0:00:17]} g5 {[%emt 0:00:08]} 32. Kg2 {[%emt 0:00:08]} Ke6 {[%emt 0:00:41]} 33. Bg4+ {[%emt 0:00:25]} f5 {[%emt 0:00:06]} 34. Bd1 {[%emt 0:00:01]} Qb4 {[%emt 0:00:19] Strongly threatening ...Qxc3.} 35. Qe3+ {[%emt 0:00:07]} Kf7 $1 {[%emt 0:00:10]} 36. Qf3 {[%emt 0:00:51]} Ne7 {[%emt 0:00:18]} 37. Bc2 {[%emt 0:00:28]} Qxd4 {[%emt 0:00:47]} ({Much less strong is} 37... Qxa5 38. Bxf5 Qe1 39. Bc8+ (39. Bg6+ Ke6 $16) 39... Ke8 40. Bxb7 $18) 38. Bxf5 {[%emt 0:00:49] Bg6+ is the strong threat.} Qf6 {[%emt 0:00:01] Repels Bg6+} 39. g4 {[%emt 0:00:31]} Nxf5 {[%emt 0:00:02]} 40. Qxd5+ {[%emt 0:00:02]} Qe6 {[%emt 0:00:00]} 41. Qf3 {[%emt 0:01:53][%mdl 64] Pin} Qc6 {[%emt 0:00:38] aiming for ...Qxf3+.} 42. Qxc6 {[%emt 0:00:18][%mdl 8192] This move loses the game for White.} (42. gxf5 $11 Kf6 43. Qxc6+ bxc6 44. Kg3 Kxf5 45. Kf3) 42... Nh4+ {[%emt 0:00:24]} 43. Kg3 {[%emt 0:00:10]} bxc6 {[%emt 0:00:00] KN-KP. Black mates.} 44. f4 {[%emt 0:00:18]} Kf6 {[%emt 0:00:09]} 45. b4 {[%emt 0:00:03] [#]} Nf5+ $1 {[%emt 0:00:20][%mdl 512]} 46. Kf3 {[%emt 0:00:13]} (46. gxf5 Kxf5) 46... Nd4+ {[%emt 0:00:05]} 47. Ke4 {[%emt 0:00:06]} Nc2 {[%emt 0:00:01]} 48. fxg5+ {[%emt 0:00:02]} Kxg5 {[%emt 0:00:01]} 49. Kd3 {[%emt 0:00:01]} Nxb4+ {[%emt 0:00:01] KN-K3P} 50. Kc4 {[%emt 0:00:00]} Nc2 {[%emt 0:00:06]} 51. Kc5 {[%emt 0:00:00]} Kxg4 {[%emt 0:00:01]} 52. Kxc6 {[%emt 0:00:01]} Kxh5 {[%emt 0:00:02] KN-KP} 53. Kb6 {[%emt 0:00:01]} Na1 {[%emt 0:00:01]} 54. Kxa6 {[%emt 0:00:01] [#]} Nb3 $1 {[%emt 0:00:01]} 55. Kb5 {[%emt 0:00:01] [#]} Nxa5 $1 {[%emt 0:00:00]} 56. Kxa5 {[%emt 0:00:00] KP-K} (56. Kb4 Kg4) 56... Kg4 {[%emt 0:00:01]} 57. Kb4 {[%emt 0:00:00]} h5 {[%emt 0:00:00]} 58. Kc3 {[%emt 0:00:00]} h4 {[%emt 0:00:01]} 59. Kd2 {[%emt 0:00:00]} h3 {[%emt 0:00:02]} 60. Ke1 {[%emt 0:00:00]} h2 {[%emt 0:00:00]} 61. Kf2 {[%emt 0:00:00]} h1=Q {[%emt 0:00:01] Weighted Error Value: White=0.27 (precise) /Black=0.01 (flawless)} 0-1

[Event "ChessKid Cup Div-III 2023"]
[Site "Online"]
[Date "2023.05.23"]
[Round "52.2"]
[White "Navara, David"]
[Black "Chigaev, Maksim"]
[Result "1-0"]
[ECO "C11"]
[WhiteElo "2678"]
[BlackElo "2628"]
[Annotator "TA"]
[PlyCount "89"]
[EventDate "2023.05.21"]
[EventType "k.o."]
[EventCountry "NET"]
[SourceTitle "playchess.com"]
[Source "ChessBase"]
[SourceQuality "1"]
[TimeControl "900+3"]

{[%evp 20,89,50,55,52,50,48,58,59,50,50,43,56,46,50,44,224,218,214,216,299,299,312,301,318,316,344,309,301,0,233,0,336,331,270,232,408,385,511,527,518,512,532,518,544,548,554,579,587,571,564,561,597,583,579,574,541,523,523,522,519,516,592,592,592,592,592,592,592,589,583,572]} 1. e4 {[%emt 0:00:04]} e6 {[%emt 0:00:05]} 2. d4 {[%emt 0:00:01]} d5 {[%emt 0:00:01]} 3. Nc3 {[%emt 0:00:02]} Nf6 {[%emt 0:00:01]} 4. e5 {[%emt 0:00:00]} Nfd7 {[%emt 0:00:01]} 5. f4 {[%emt 0:00:01]} c5 {[%emt 0:00:00]} 6. Nf3 {[%emt 0:00:00]} Nc6 {[%emt 0:00:01]} 7. Be3 {[%emt 0:00:01]} Qb6 {[%emt 0:00:00]} 8. Na4 {[%emt 0:00:34]} Qa5+ {[%emt 0:00:02]} 9. c3 {[%emt 0:00:01]} b6 {[%emt 0:00:01]} 10. Bd2 {[%emt 0:00:57]} c4 {[%emt 0:00:01]} 11. b4 $1 {[%emt 0:00:05]} Nxb4 {[%emt 0:00:01] C11: French: Classical System: 4 e5 and 4 Bg5 dxe4.} 12. cxb4 {[%emt 0:00:01]} Bxb4 {[%emt 0:00:00] ...b5 would be deadly.} 13. Qc2 {[%emt 0:01:43]} Bxd2+ {[%emt 0:00:03] White is slightly better.} 14. Nxd2 {[%emt 0:00:00]} b5 {[%emt 0:00:00]} 15. Nc3 {[%emt 0:00:11]} b4 {[%emt 0:01:48]} 16. Nd1 {[%emt 0:03:53][%cal Of1c4]} O-O {[%emt 0:00:03]} 17. Be2 {[%emt 0:00:18]} Nb8 $2 {[%emt 0:00:10] [#]} (17... Qb6 $14) 18. Nxc4 $1 $18 {[%emt 0:00:49][%mdl 512]} dxc4 {[%emt 0:00:25] [#]} 19. Bf3 {[%emt 0:00:00] [#] Prevents Bb7} Qb6 $146 {[%emt 0:00:04] aiming for ...Nc6.} (19... b3+ $2 20. Qd2 c3 21. Qxc3 $18) ({Predecessor:} 19... Nc6 20. Bxc6 Rb8 21. Qxc4 Ba6 22. Qc5 Qa3 23. Qc1 Qa5 24. Qd2 Rfd8 25. Bf3 Rbc8 {0-1 Hossain,E (2433)-Reefat,B (2417) BAN-ch 45th Dhaka 2019 (5)}) 20. Bxa8 {[%emt 0:00:06]} Qxd4 {[%emt 0:00:03]} 21. Rc1 {[%emt 0:01:08]} Qxf4 {[%emt 0:03:09]} 22. Qxc4 {[%emt 0:00:04]} Qxe5+ {[%emt 0:00:24]} 23. Qe4 {[%emt 0:01:31]} Qb5 {[%emt 0:01:04]} 24. Qc4 {[%emt 0:00:02]} Qe5+ {[%emt 0:00:04]} 25. Qe4 {[%emt 0:00:01]} (25. Kf2 $142 Qd6 26. Qxc8 Qd2+ 27. Kf1) 25... Qb5 $1 {[%emt 0:00:00]} 26. Ne3 {[%emt 0:00:00]} Ba6 {[%emt 0:00:28][%csl Ga6][%cal Rb5e2]} 27. Nc4 {[%emt 0:01:43] And now 0-0 would win.} h6 $2 {[%emt 0:04:13]} (27... b3) 28. O-O {[%emt 0:00:22]} Nd7 {[%emt 0:00:04]} 29. Bc6 {[%emt 0:00:35] White is clearly winning.} Qc5+ {[%emt 0:00:04]} 30. Ne3 {[%emt 0:00:00]} Qe7 {[%emt 0:00:24]} 31. Rfd1 {[%emt 0:00:15]} Nf6 {[%emt 0:00:33]} 32. Qe5 {[%emt 0:00:04] Threatens to win with Nf5.} Rc8 {[%emt 0:00:14]} 33. Nf5 {[%emt 0:00:13]} Qc7 {[%emt 0:00:15]} 34. Qxc7 {[%emt 0:01:42]} Rxc7 {[%emt 0:00:00]} 35. Nd6 {[%emt 0:00:01]} Be2 {[%emt 0:00:11]} 36. Re1 {[%emt 0:00:07]} Bh5 {[%emt 0:00:32]} 37. Bb5 {[%emt 0:00:01]} Re7 {[%emt 0:00:08]} 38. Rc8+ {[%emt 0:00:01]} Kh7 {[%emt 0:00:01]} 39. Rec1 {[%emt 0:00:14]} Nd5 {[%emt 0:00:12]} 40. R1c5 {[%emt 0:00:07] Wards off Nc3} Bg6 {[%emt 0:00:21]} 41. Re8 {[%emt 0:00:01]} Rc7 {[%emt 0:01:02]} 42. Rxc7 {[%emt 0:00:01]} Nxc7 {[%emt 0:00:00]} 43. Re7 {[%emt 0:00:00]} Nxb5 {[%emt 0:00:05]} 44. Nxb5 {[%emt 0:00:00]} a5 {[%emt 0:00:00]} 45. Ra7 {[%emt 0:00:02] Weighted Error Value: White=0.27 (precise) /Black=0.32} 1-0

[Event "ChessKid Cup Div-III 2023"]
[Site "Online"]
[Date "2023.05.23"]
[Round "52.2"]
[White "Bluebaum, Matthias"]
[Black "Keymer, Vincent"]
[Result "1-0"]
[ECO "D02"]
[WhiteElo "2669"]
[BlackElo "2700"]
[Annotator "TA"]
[PlyCount "49"]
[EventDate "2023.05.21"]
[EventType "k.o."]
[EventCountry "NET"]
[SourceTitle "playchess.com"]
[Source "ChessBase"]
[SourceQuality "1"]
[TimeControl "900+3"]

{[%evp 11,49,-7,-6,0,0,-5,0,0,0,0,25,0,18,0,23,24,27,28,192,184,181,195,183,175,221,220,239,239,239,239,257,248,221,200,255,214,266,267,459,467]} 1. d4 {[%emt 0:00:04]} Nf6 {[%emt 0:00:06]} 2. Nf3 {[%emt 0:00:01]} d5 {[%emt 0:00:04]} 3. Bf4 {[%emt 0:00:01]} e6 {[%emt 0:00:07]} 4. e3 {[%emt 0:00:01]} Bd6 {[%emt 0:00:01]} 5. Ne5 {[%emt 0:00:00]} O-O {[%emt 0:00:02]} 6. Nd2 {[%emt 0:00:00][%cal Bb1d2,Bd2f3,Bf3g5][%mdl 32]} c5 {[%emt 0:00:01]} 7. c3 {[%emt 0:00:01] D02: 1 d4 d5 2 Nf3 sidelines, including 2...Nf6 3 g3 and 2...Nf6 3 Bf4.} Qc7 {[%emt 0:00:02] Nowadays more popular than 7...Nc6.} 8. Bd3 {[%emt 0:00:00]} b6 {[%emt 0:00:06]} 9. Qe2 $5 {[%emt 0:00:00][%mdl 4] The position is equal. Leaves trodden paths.} a5 {[%emt 0:01:47]} 10. h4 {[%emt 0:00:03]} Nbd7 {[%emt 0:00:01][%cal Rd7e5]} (10... Ba6 11. Bxa6 Nxa6 12. h5 h6 13. g4 Nh7 14. a4 Nb8 15. Bg3 Nc6 16. f4 f6 17. Ng6 Rf7 {1-0 Bluebaum,M (2639)-Keymer,V (2607) Titled Tuesday intern op 14th Sept blitz 2021 (9)}) 11. Ndf3 {[%emt 0:00:28] [#]} Ne4 $146 {[%emt 0:00:03]} ({Predecessor:} 11... Bb7 12. h5 h6 13. g4 Ne4 14. Nxd7 Qxd7 15. Ne5 Bxe5 16. dxe5 a4 17. f3 c4 {1-0 Sevian,S (2687)-Gabrielian,A (2460) Speed Chess Q2 blitz 2022 (6)}) 12. Ng5 {[%emt 0:01:45]} (12. Rd1 $5 {[%cal Re5d7]}) 12... Nxe5 {[%emt 0:04:13]} 13. dxe5 {[%emt 0:00:03]} Bxe5 {[%emt 0:00:05]} 14. Nxe4 {[%emt 0:00:05]} (14. Qh5 $5 h6 $8 15. Nxe6 (15. Nxe4 Bxf4 16. exf4 dxe4 $15) 15... Bxe6 16. Qxe5 Qxe5 17. Bxe5 $11) 14... Bxf4 $2 {[%emt 0:02:44] [#] Black cannot hold the game after this.} (14... dxe4 $11 15. Bxe4 Ra7) 15. Ng5 $1 $18 {[%emt 0:00:31]} ({Stronger than} 15. exf4 c4 16. Bc2 dxe4 $11) 15... h6 {[%emt 0:01:31] ...Bd6 would be deadly.} 16. exf4 $40 {[%emt 0:00:30][%mdl 128] White goes for the king.} Qxf4 {[%emt 0:00:01]} 17. Nf3 {[%emt 0:01:49] Prevents e5} c4 {[%emt 0:01:04]} (17... f6 $142 18. h5 Rd8) 18. Bc2 {[%emt 0:00:07]} e5 {[%emt 0:00:01]} 19. Qe3 {[%emt 0:02:10]} ({Not} 19. Nxe5 Re8 20. O-O Rxe5 $17) ({Don't play} 19. Qxe5 $6 Qxe5+ 20. Nxe5 Re8 $16) 19... Qxe3+ {[%emt 0:00:53]} 20. fxe3 {[%emt 0:00:00]} f6 {[%emt 0:00:00]} 21. O-O-O {[%emt 0:00:04]} Bb7 {[%emt 0:00:05]} 22. Bf5 {[%emt 0:00:44] Be6+ is the strong threat.} Rfd8 {[%emt 0:00:31]} 23. g4 {[%emt 0:00:43]} Kf7 {[%emt 0:00:37]} 24. Rhf1 {[%emt 0:00:08][%cal Of3e5] Strongly threatening Nxe5+!} b5 $2 {[%emt 0:00:16] [#]} (24... Ke7 {was necessary.} 25. g5 Bc8) 25. Nxe5+ $1 {[%emt 0:00:13][%mdl 512] Weighted Error Value: White=0.05 (flawless) /Black=0.37} 1-0

[Event "ChessKid Cup Div-III 2023"]
[Site "Online"]
[Date "2023.05.23"]
[Round "52.2"]
[White "Donchenko, Alexander"]
[Black "Harshavardhan G B"]
[Result "1/2-1/2"]
[ECO "E14"]
[WhiteElo "2669"]
[BlackElo "2408"]
[Annotator "TA"]
[PlyCount "143"]
[EventDate "2023.05.21"]
[EventType "k.o."]
[EventCountry "NET"]
[SourceTitle "playchess.com"]
[Source "ChessBase"]
[SourceQuality "1"]
[TimeControl "900+3"]

{[%evp 9,143,53,52,52,52,47,54,50,54,47,56,44,50,48,39,26,66,33,56,41,66,31,45,51,41,18,16,32,69,45,38,35,59,50,99,102,81,80,87,82,95,81,96,47,53,22,24,23,25,0,0,0,0,0,0,0,0,0,0,0,0,0,0,0,0,0,0,0,0,0,0,-5076,-5076,-5076,-5076,-29972,-29973,-29986,-29979,-29979,-29980,-29975,-5076,-5076,-5076,-4602,0,-29974,0,0,0,0,0,0,0,0,0,0,0,0,0,0,0,0,0,0,0,0,0,0,0,0,0,0,0,0,0,0,0,0,0,0,0,0,0,0,0,0,0,0,0,0,0,0,0,0]} 1. d4 {[%emt 0:00:05]} Nf6 {[%emt 0:00:07]} 2. Nf3 {[%emt 0:00:11]} e6 {[%emt 0:00:08]} 3. c4 {[%emt 0:00:05]} c5 {[%emt 0:00:01]} 4. e3 {[%emt 0:00:03]} b6 {[%emt 0:00:05]} 5. d5 {[%emt 0:00:03]} exd5 {[%emt 0:00:07]} 6. cxd5 {[%emt 0:00:00] E14: Queen's Indian: Classical Variation (4 e3).} g6 {[%emt 0:00:06]} 7. Nc3 {[%emt 0:00:04]} a6 {[%emt 0:00:04]} 8. a4 {[%emt 0:00:44] White is slightly better.} d6 {[%emt 0:00:02] [#]} 9. Be2 $146 {[%emt 0:00:12]} ({Predecessor:} 9. Nd2 Bg7 10. Nc4 O-O 11. Qb3 Nbd7 12. Nxd6 Ne5 13. Nxc8 Rxc8 14. Be2 c4 15. Qd1 {1-0 Vulevic,V (2314)-Jovanovic,M (2071) Belgrade-chT Quality 2008 (9)}) 9... Bg7 {[%emt 0:00:01]} 10. O-O {[%emt 0:00:03]} O-O {[%emt 0:00:01]} 11. Nd2 {[%emt 0:00:35]} Nbd7 {[%emt 0:00:03]} 12. Nc4 {[%emt 0:00:08]} Qe7 {[%emt 0:00:12]} 13. Re1 {[%emt 0:01:11]} (13. Ra3 $5) 13... Rb8 {[%emt 0:00:05]} 14. e4 {[%emt 0:00:14]} Ne8 {[%emt 0:00:27]} 15. Be3 {[%emt 0:01:33]} Nc7 {[%emt 0:00:34]} 16. Qd2 {[%emt 0:00:20]} Ne5 {[%emt 0:00:27]} 17. Nxe5 {[%emt 0:00:34]} Bxe5 {[%emt 0:00:04]} 18. Bg5 {[%emt 0:00:07]} Bf6 {[%emt 0:00:29]} (18... Bxc3 19. bxc3 f6 20. Bh4 $16) 19. h4 $36 {[%emt 0:01:00][%mdl 2048] White fights for an advantage.} Bxg5 {[%emt 0:00:52]} 20. Qxg5 {[%emt 0:00:16]} Re8 {[%emt 0:00:39]} 21. f4 {[%emt 0:01:12]} b5 {[%emt 0:01:41]} (21... f6 $14 22. Qg3 Kh8) 22. Qxe7 {[%emt 0:00:10]} (22. e5 {feels hotter.} Qxg5 23. hxg5 dxe5 24. d6) 22... Rxe7 {[%emt 0:00:02] [#]} 23. e5 $1 {[%emt 0:00:00]} Rd7 {[%emt 0:00:26]} (23... dxe5 $2 24. d6 Rd7 25. dxc7 Rxc7 26. axb5 axb5 27. Bxb5 $18) 24. axb5 {[%emt 0:00:13]} axb5 {[%emt 0:00:08]} 25. Ne4 {[%emt 0:04:11]} Rd8 {[%emt 0:00:11]} 26. Rad1 {[%emt 0:01:03] White has more active pieces. The black rooks are badly placed.} (26. Red1 $16) 26... Ne8 $14 {[%emt 0:01:37]} 27. g4 {[%emt 0:00:53]} dxe5 {[%emt 0:01:51]} 28. fxe5 {[%emt 0:00:03]} Bb7 {[%emt 0:00:01]} 29. Bxb5 {[%emt 0:00:30]} Bxd5 {[%emt 0:01:09]} 30. Bxe8 {[%emt 0:00:10]} Bxe4 {[%emt 0:00:04]} 31. Rxd8 {[%emt 0:00:03]} Rxd8 {[%emt 0:00:02]} 32. Bxf7+ {[%emt 0:00:00]} Kxf7 {[%emt 0:00:01]} 33. Rxe4 $11 {[%emt 0:00:01][%mdl 4096] Endgame KR-KR} Ke6 {[%emt 0:00:01]} 34. Rc4 {[%emt 0:00:18]} Kd5 {[%emt 0:00:12]} 35. Rc2 {[%emt 0:00:04] Intending Rd2+ and mate.} Re8 {[%emt 0:00:12]} 36. Rd2+ {[%emt 0:00:10]} Ke4 {[%emt 0:00:02]} 37. Rd7 {[%emt 0:00:04]} h5 {[%emt 0:00:02]} 38. gxh5 {[%emt 0:00:02]} gxh5 {[%emt 0:00:01]} 39. b4 {[%emt 0:00:05]} c4 {[%emt 0:00:05][%cal Bc5c4,Bc4c3,Bc3c2][%mdl 32]} 40. Rc7 $2 {[%emt 0:00:03][%mdl 8192]} (40. Kf1 $11) 40... Kd3 $1 $19 {[%emt 0:00:07]} (40... Rxe5 41. Rxc4+ Kf3 42. Kh2 $11) 41. Rc5 {[%emt 0:00:14] [#]} c3 $1 {[%emt 0:00:01]} 42. b5 {[%emt 0:00:02]} c2 {[%emt 0:00:01]} 43. b6 {[%emt 0:00:02]} Rb8 {[%emt 0:00:43]} 44. Kf2 {[%emt 0:00:10]} Rxb6 {[%emt 0:00:02]} 45. Kf3 {[%emt 0:00:03]} Rb4 {[%emt 0:00:11]} (45... Rb3 $142 46. Rxc2 Kxc2+ 47. Ke4 Rb4+ 48. Kf5 Rxh4 49. Kg5 Re4 50. Kxh5 Rxe5+ 51. Kh6 Kd3 52. Kg7 Ke4 53. Kg6 Rf5 54. Kg7 Kf4 55. Kh6 Rf6+ 56. Kg7 Kf5 57. Kh7 Rf7+ 58. Kh8 Kf6 59. Kg8 Kg6 60. Kh8 Rf8#) 46. e6 {[%emt 0:00:04]} Rb6 {[%emt 0:00:21]} (46... Rxh4 47. Rxc2 Rh1 48. Rc8 Rf1+ 49. Kg3 $11) 47. e7 {[%emt 0:00:01] [#]} Re6 $2 {[%emt 0:00:01]} (47... Rb8 $1 $19 {Threatens to win with ...Kd2.} 48. Rc7 Kd2) 48. Rc7 $2 {[%emt 0:00:01][%mdl 8192]} (48. Rd5+ $11 Kc3 49. Rc5+ Kb3 50. Rb5+ Kc4 51. Rb7) 48... Re1 $2 {[%emt 0:00:44]} ({Not} 48... Rxe7 49. Rxe7 Kd4 50. Rc7 Kd3 51. Kf4 Kd2 52. Ke4 Kd1 53. Ke3 c1=Q+ 54. Rxc1+ Kxc1 55. Kf4) (48... Re3+ {mates} 49. Kf2 Rxe7 {[%mdl 64] Promotion} 50. Rxe7 c1=Q 51. Rd7+ Ke4 52. Re7+ Kf4 53. Re2 Qd1 54. Re8 Qd4+ 55. Kf1 Qc4+ 56. Ke1 Qb4+ 57. Kf2 Qc5+ 58. Ke1 Kf3 59. Kd2 Qd5+ 60. Ke1 Qa5+ 61. Kd1 Qa4+ 62. Kd2 Qxe8 63. Kc3 Qc6+ 64. Kb3 Ke3 65. Kb4 Kd3 66. Ka5 Qb7 67. Ka4 Kc4 68. Ka5 Qb5#) 49. Rd7+ $11 {[%emt 0:00:02] The position is equal.} Kc3 {[%emt 0:00:01]} 50. Rc7+ {[%emt 0:00:01]} Kb2 {[%emt 0:00:01]} (50... Kd2 $5 51. Rd7+ $8 Kc3 52. Rc7+ Kd3 53. Rd7+ Kc4 $11) 51. Rb7+ {[%emt 0:00:01]} Kc1 {[%emt 0:00:02]} 52. Kf4 {[%emt 0:00:07]} Re2 {[%emt 0:00:08]} 53. Kg5 {[%emt 0:00:05]} Kd1 {[%emt 0:00:02]} (53... Kd2 $5 54. Rd7+ $8 Kc3 55. Rc7+ Kb2 $11) 54. Rd7+ {[%emt 0:00:03]} (54. Kxh5 c1=Q 55. e8=B Rxe8 56. Rf7 Qc5+ 57. Kh6 Qe5 58. Rd7+ Ke2 59. Kh7 Rh8+ 60. Kg6 Qe6+ 61. Kg5 Rg8+) 54... Ke1 {[%emt 0:00:07]} 55. Rc7 {[%emt 0:00:01][%cal Oc7c2] Rxc2! would be deadly.} (55. Kxh5 c1=Q 56. e8=B Rxe8 57. Rf7 Qe3 58. Rg7 Qf3+ 59. Kh6 Qf6+ 60. Kh7 Qf5+ 61. Rg6 Qh5+ 62. Kg7 Qh8+ 63. Kf7 Qf8#) 55... Kd2 {[%emt 0:00:25][%cal Oe2e7] Hoping for ...Rxe7!} 56. Rd7+ {[%emt 0:00:01]} Kc3 {[%emt 0:00:02]} (56... Ke1 $5 57. Rc7 $8 (57. Kxh5 c1=Q 58. e8=B Rxe8 59. Rf7 Qc6 60. Rg7 Qf3+ 61. Kh6 Qf6+ 62. Kh7 Qf5+ 63. Rg6 Qh5+ 64. Kg7 Qh8+ 65. Kf7 Qf8#) 57... Kd2 58. Rd7+ Kc3 59. Rc7+ Kd2 $11) 57. Rc7+ {[%emt 0:00:01]} Kb3 {[%emt 0:00:00][%cal Oe2e7]} 58. Rb7+ {[%emt 0:00:01]} Kc3 {[%emt 0:00:37]} 59. Rc7+ {[%emt 0:00:01]} Kd2 {[%emt 0:00:02][%cal Oe2e7]} 60. Rd7+ {[%emt 0:00:05]} Ke1 {[%emt 0:00:01]} 61. Rc7 {[%emt 0:00:01][%cal Oc7c2] Black must now prevent Rxc2!} (61. Kxh5 {leads to mate.} c1=Q 62. e8=B Rxe8 63. Rf7 Qe3 64. Kg6 Qg3+ 65. Kf6 Qe5+ 66. Kg6 Rg8+) 61... Kd1 {[%emt 0:00:00][%cal Oe2e7] And now ...Rxe7! would win.} 62. Rd7+ {[%emt 0:00:02]} Kc1 {[%emt 0:00:55]} (62... Ke1 $5 63. Rc7 $8 $11 (63. Kxh5 {is a self mate.} c1=Q 64. e8=B Qf4 65. Ra7 Re5+ 66. Kg6 Re6+ 67. Kh7 Qh6+ 68. Kg8 Rxe8+ 69. Kf7 Qe6+ 70. Kg7 Rg8+ 71. Kh7 Qg6#)) 63. Kxh5 {[%emt 0:00:05]} Re4 {[%emt 0:00:14]} 64. Rc7 {[%emt 0:00:06]} Kd2 {[%emt 0:00:02]} 65. Kg6 {[%emt 0:00:03] Kf6 is the strong threat.} Rxe7 {[%emt 0:00:06][%mdl 64] Promotion} 66. Rxc2+ {[%emt 0:00:03]} Kxc2 {[%emt 0:00:00] KR-KP} 67. h5 {[%emt 0:00:01]} Kd3 {[%emt 0:00:01]} 68. h6 {[%emt 0:00:00]} Ke4 {[%emt 0:00:02]} 69. h7 {[%emt 0:00:01]} Re8 {[%emt 0:00:02]} 70. Kg7 {[%emt 0:00:01]} Kf5 {[%emt 0:00:01]} 71. h8=Q {[%emt 0:00:00]} Rxh8 {[%emt 0:00:00]} 72. Kxh8 {[%emt 0:00:01] Black had all chances to win.   Weighted Error Value: White=0.40/Black=0.37} 1/2-1/2